Cogmind - Beta 13 @@@ ROGUE MODE // 2024.04.11 @ 18:34:28 Player: JackZewap Result: Destroyed by G-47 Trooper with Particle Gun Performance ------------- Evolutions (2) 1000 Regions Visited (4) 800 Robots Destroyed (81) 405 Value Destroyed (2169) 2169 Prototype IDs (4) 80 Alien Tech Used (0) 0 Bonus (152) 152 TOTAL SCORE: 4606 Bonus ------- High Alert Combat Kills 49 Follower Combat Kills 103 Cogmind --------- Core Integrity 0/550 Matter 292/300 Energy 48/100 System Corruption 0% Temperature Cool (9) Movement Hovering (60) Location -8/Materials Parts ------- > --- POWER (1) -------- (None) > --- PROPULSION (2) --- Hover Unit > --- UTILITY (6) ------ Advanced Visual Processing Unit Improved Signal Interpreter Improved Melee Analysis Suite Improved Melee Analysis Suite Improved Melee Analysis Suite Improved Weapon Shielding > --- WEAPON (2) ------- Katana Scythe > --- INVENTORY (5) ---- Light Deuterium Engine Hover Unit Experimental Sensor Array Recalibrator Assault Cannon Peak State ------------ > --- POWER ------------ Reinforced Ion Engine > --- PROPULSION ------- Carbon-fiber Leg Titanium Leg > --- UTILITY ---------- Improved Heat Sink Medium Storage Unit Advanced Visual Processing Unit Experimental Sensor Array Improved Weapon Shielding > --- WEAPON ----------- Heavy Laser Scythe > --- INVENTORY -------- Light Nuclear Core Improved Heat Sink Disposable Heat Sink Huge Storage Unit Improved Terrain Scanner Recalibrator Heavy Assault Rifle Heavy Assault Rifle [Rating: 36] Favorites ----------- Power Heavy Ion Engine Engine Heavy Ion Engine Power Core Light Nuclear Core Propulsion Titanium Leg Treads Light Treads Leg Titanium Leg Wheel Compact Wheel Hover Unit Hover Unit Flight Unit VTOL Module Utility Advanced Targeting Computer Device Improved Heat Sink Storage Medium Storage Unit Processor Advanced Targeting Computer Hackware Hacking Suite Protection Improved Weapon Shielding Weapon Improved Assault Rifle Energy Gun Heavy EM Pulse Gun Energy Cannon EM Pulse Cannon Ballistic Gun Improved Assault Rifle Ballistic Cannon Light Cannon Impact Weapon Maul Slashing Weapon Scythe Build | -11 -10 -9 -9 -8 ------- Run | Yrd Mat Mat Min Mat Slots Evolved 4 | . . 2 . 2 Power . | . . . . . Propulsion . | . . . . . Utility 4 | . . 2 . 2 Weapon . | . . . . . Parts Attached 82 | 6 14 19 1 42 Power 11 | 1 1 2 . 7 Engine 8 | 1 1 2 . 4 Core 3 | . . . . 3 Reactor . | . . . . . Propulsion 17 | 2 3 2 . 10 Treads 1 | . . . . 1 Leg 5 | . . 2 . 3 Wheel 5 | 2 3 . . . Hover 4 | . . . . 4 Flight 2 | . . . . 2 Utility 29 | 1 2 7 1 18 Device 6 | . 1 . . 5 Storage 5 | 1 . 4 . . Processor 12 | . . 3 1 8 Hackware 2 | . 1 . . 1 Protection 4 | . . . . 4 Artifact . | . . . . . Weapon 25 | 2 8 8 . 7 Energy Gun 4 | 1 2 . . 1 Energy Cannon 2 | . . 2 . . Ballistic Gun 13 | 1 6 5 . 1 Ballistic Cannon 1 | . . 1 . . Launcher . | . . . . . Special Weapon . | . . . . . Impact Weapon 2 | . . . . 2 Slashing Weapon 3 | . . . . 3 Piercing Weapon . | . . . . . Special Melee Weapon . | . . . . . Unidentified Prototypes 3 | . . 2 . 1 Parts Lost 17 | . 4 1 . 12 Power 4 | . 1 1 . 2 Propulsion 5 | . 1 . . 4 Utility 3 | . 1 . . 2 Weapon 5 | . 1 . . 4 Highest Loss Streak 3 | . 3 1 . 3 To Critical Strikes . | . . . . . Average Slot Usage (%) 92 | . 92 98 100 86 Engine 7 | . 13 10 11 1 Core 1 | . . . . 2 Leg 11 | . . 21 22 7 Wheel 5 | . 28 . . . Hover 2 | . . . . 6 Device 5 | . . . . 10 Storage 8 | . 14 10 11 4 Processor 22 | . . 32 33 23 Protection 5 | . 5 . . 10 Energy Gun 1 | . 8 . . . Energy Cannon 1 | . . 7 . . Ballistic Gun 10 | . 19 11 22 4 Slashing Weapon 4 | . . . . 10 Naked Turns . | . . . . . Heaviest Build 100 | 12 14 100 24 32 Greatest Support 34 | 20 32 34 34 34 Greatest Overweight (x) 3 | . . 3 . 3 Average Overweight (x) . | . . . . . Largest Inventory Capacity 25 | 8 8 25 10 10 Average Capacity 8 | 7 8 12 10 7 Most Carried 10 | 1 8 10 10 10 Average Carried 7 | . 6 9 9 6 Final Capacity 10 | 8 8 10 10 5 Final Carried 10 | 1 8 10 10 5 Class Distribution -------------------- 91% | Mutant 4% | Assassin Dominant Class ---------------- Mutant | -10/Materials Mutant | -9/Materials Mutant | -9/Mines Mutant | -8/Materials Resources | -11 -10 -9 -9 -8 ----------- Run | Yrd Mat Mat Min Mat Matter Collected 1718 | 269 257 450 52 690 Remotely 75 | . . . . 75 Salvage Created 3176 | 56 608 1009 50 1453 Parts 186 | 1 43 62 6 74 Haulers Intercepted 9 | . 2 5 . 2 Recyclers Shooed . | . . . . . Parts Field Recycled . | . . . . . Retrieved Matter . | . . . . . Parts Self-Destructed . | . . . . . Prevented . | . . . . . Kills | -11 -10 -9 -9 -8 ------- Run | Yrd Mat Mat Min Mat Combat Hostiles Destroyed 56 | . 12 20 3 21 Melee 8 | . . . . 8 Guns 35 | . 11 8 3 13 Cannons 9 | . . 9 . . AOE 4 | . 1 3 . . Classes Destroyed 12 | 1 5 3 . 3 Worker 2 | . . 2 . . Hauler 9 | . 2 5 . 2 Recycler 3 | 1 . . . 2 Mechanic 1 | . . . . 1 Operator 2 | . 2 . . . Watcher 8 | . 2 4 . 2 Swarmer 14 | . 3 8 3 . Grunt 30 | . 9 7 . 14 Brawler 1 | . . 1 . . Duelist 1 | . . . . 1 Sentry 9 | . . 4 . 5 Hunter 1 | . . . . 1 Best Kill Streak 7 | 1 6 7 3 3 Combat Bots Only 6 | . 6 4 3 3 Max Kills in Single Turn 2 | 1 2 2 1 1 Gunslinging 1 | . 1 . . . Exploded 2 | . 1 2 . . Melee 1 | . . . . 1 Uniques/NPCs Destroyed . | . . . . . Combat | -11 -10 -9 -9 -8 -------- Run | Yrd Mat Mat Min Mat Hostile Shots Fired 341 | . 63 95 17 166 Missed 113 | . 20 41 5 47 Damage Taken 3278 | . 514 753 91 1920 Core 819 | . 134 104 19 562 Absorbed by Shields . | . . . . . Redirected to Shielding 20 | . . . . 20 Core Remaining (%) 71 | 100 46 . 69 . Volleys Fired 210 | 3 54 64 7 82 Largest 2 | 2 2 2 2 2 Hottest 126 | 70 90 126 46 69 Shots Fired 356 | 6 102 121 14 113 Gun 313 | 6 102 78 14 113 Cannon 43 | . . 43 . . Launcher . | . . . . . Special . | . . . . . Kinetic 283 | 3 62 93 14 111 Thermal 20 | 3 15 . . 2 Explosive . | . . . . . Electromagnetic 53 | . 25 28 . . Robot Hit Streak 39 | 6 11 33 4 39 Robot Miss Streak 4 | . 4 1 2 1 Penetration Max . | . . . . . Secondary Targets 7 | . 3 2 1 1 Max Gunslinging Chain 1 | . 1 1 1 1 Shots Hit Robots 320 | 6 64 99 8 143 Core Hits 133 | 2 31 42 3 55 Critical Kills 2 | . . 1 . 1 Critical Parts Destroyed 3 | . . 1 . 2 Critical Strikes 10 | . 1 4 . 5 Burn 1 | . 1 . . . Destroy 2 | . . 2 . . Blast 1 | . . 1 . . Corrupt 1 | . . 1 . . Smash 3 | . . . . 3 Sever 2 | . . . . 2 Melee Attacks 46 | . . . . 46 Impact 7 | . . . . 7 Slashing 39 | . . . . 39 Piercing . | . . . . . Sneak Attacks 4 | . . . . 4 Combat Hostiles . | . . . . . Follow-up Attacks 2 | . . . . 2 Damage Inflicted 5714 | 78 782 1841 122 2891 Guns 3445 | 78 729 934 122 1582 Cannons 740 | . . 740 . . Explosions 210 | . 53 157 . . Melee 1309 | . . . . 1309 Ramming 10 | . . 10 . . Kinetic 3269 | 41 391 1170 122 1545 Thermal 409 | 37 188 147 . 37 Explosive 10 | . . 10 . . Electromagnetic 707 | . 203 504 . . Impact 328 | . . . . 328 Slashing 981 | . . . . 981 Piercing . | . . . . . Highest Corruption . | . . . . . Average Corruption . | . . . . . Corruption Purged . | . . . . . Corruption Blocked . | . . . . . Overload Shots . | . . . . . Overflow Damage 134 | . . 22 . 112 Projectiles 18 | . . 18 . . Explosions 4 | . . 4 . . Melee 112 | . . . . 112 Knockbacks 2 | . . 1 . 1 Impact 1 | . . . . 1 Kinetic 1 | . . 1 . . Secondary . | . . . . . Self-Inflicted Damage 152 | . 21 131 . . Shots 3 | . 1 2 . . Rammed . | . . . . . Targets Rammed 3 | . . 3 . . Kicked 3 | . . 3 . . Crushed . | . . . . . Highest Temperature 240 | 27 126 240 . 18 Average Temperature 46 | 14 33 65 . 8 Received Heat Transfer 1476 | . 240 219 . 1017 Siege Activations . | . . . . . Robots Corrupted . | . . . . . Combat Hostiles . | . . . . . Parts Fried 7 | . . 3 . 4 Impact Corruptions 3 | . . . . 3 Robots Melted . | . . . . . Combat Hostiles . | . . . . . Parts Melted 1 | . . 1 . . Heat Transferred 916 | 111 531 200 . 74 Parts Sabotaged . | . . . . . Parts Stolen . | . . . . . Parts Stripped . | . . . . . Power Chain Reactions 3 | . 1 2 . . Alert | -11 -10 -9 -9 -8 ------- Run | Yrd Mat Mat Min Mat Peak Influence 570 | 5 203 570 248 365 Initial 178 | . 3 37 178 18 Average 176 | 1 85 253 207 169 Maximum Alert Level 2 | . 1 2 1 1 Low Security (%) 59 | 100 97 38 42 57 Level 1 35 | . 2 39 57 42 Level 2 5 | . . 21 . . Level 3 . | . . . . . Level 4 . | . . . . . Level 5 . | . . . . . High Security . | . . . . . Max Security . | . . . . . Squads Dispatched 14 | . 3 4 . 7 Investigation 6 | . 2 . . 4 Extermination . | . . . . . Reinforcement 7 | . 1 3 . 3 Assault 1 | . . 1 . . Garrison . | . . . . . Intercept . | . . . . . Searches Triggered . | . . . . . Construction Impeded . | . . . . . Haulers Reinforced . | . . . . . Active Scanning Responses . | . . . . . Cargo Convoy Interrupts . | . . . . . Stealth | -11 -10 -9 -9 -8 --------- Run | Yrd Mat Mat Min Mat Distress Signals 7 | . 2 2 . 3 Communications Jammed . | . . . . . Distress Signals . | . . . . . Times Spotted 115 | . 23 37 3 52 Peak Tracking Total 12 | . 3 6 3 12 Tactical Retreats 7 | . 2 . . 5 Traps | -11 -10 -9 -9 -8 ------- Run | Yrd Mat Mat Min Mat Traps Triggered 1 | . . . . 1 Indirectly . | . . . . . Trap Hack Attempts . | . . . . . Triggered . | . . . . . Disarmed . | . . . . . Reprogrammed . | . . . . . Reused . | . . . . . Traps Extracted . | . . . . . Installed . | . . . . . Triggered . | . . . . . Machines | -11 -10 -9 -9 -8 ---------- Run | Yrd Mat Mat Min Mat Machines Disabled 1 | . . 1 . . Max in Single Turn 1 | . . 1 . . Garrison Access 1 | . . . . 1 Machines Repaired . | . . . . . Machines Dismantled . | . . . . . Machines Sabotaged . | . . . . . Overloaded Fab Kills . | . . . . . Hacking | -11 -10 -9 -9 -8 --------- Run | Yrd Mat Mat Min Mat Machines Accessed 20 | . 9 5 . 6 Terminals 15 | . 6 5 . 4 Fabricators . | . . . . . Repair Stations 1 | . 1 . . . Recycling Units 2 | . 2 . . . Scanalyzers 1 | . . . . 1 Garrison Access 1 | . . . . 1 Total Hacks 56 | . 23 12 . 21 Successful 26 | . 10 7 . 9 Failed 30 | . 13 5 . 12 Catastrophic 5 | . 3 . . 2 Database Lockouts . | . . . . . Manual 24 | . 10 7 . 7 Terminals 41 | . 15 12 . 14 Fabricators . | . . . . . Repair Stations 5 | . 5 . . . Recycling Units 3 | . 3 . . . Scanalyzers 5 | . . . . 5 Garrison Access 2 | . . . . 2 Terminal Hacks 10 | . 4 3 . 3 Record 2 | . 1 . . 1 Unreport Threat 4 | . 2 . . 2 Locate Traps 1 | . 1 . . . Reinforcement Status 1 | . . 1 . . Hauler Manifests 1 | . . 1 . . Zone Layout 1 | . . 1 . . Fabricator Hacks . | . . . . . Repair Station Hacks 1 | . 1 . . . Refit 1 | . 1 . . . Recycling Unit Hacks 1 | . 1 . . . Report Inventory 1 | . 1 . . . Scanalyzer 3 | . . . . 3 Insert Component 1 | . . . . 1 Analyze 2 | . . . . 2 Garrison Access Hacks 1 | . . . . 1 Seal Access 1 | . . . . 1 Unauthorized Hacks 10 | . 4 4 . 2 Terminals 10 | . 4 4 . 2 Assimilate 1 | . . 1 . . Botnet 9 | . 4 3 . 2 Fabricators . | . . . . . Repair Stations . | . . . . . Recycling Units . | . . . . . Scanalyzers . | . . . . . Garrison Access . | . . . . . Data Cores Recovered 1 | . 1 . . . Used 1 | . 1 . . . Hacking Detections 17 | . 7 4 . 6 Full Trace Events 6 | . 3 . . 3 Feedback Events 1 | . 1 . . . Hackware Fried 1 | . 1 . . . Feedback Blocked . | . . . . . Robot Schematics Acquired . | . . . . . Robots Built . | . . . . . Authchips . | . . . . . Time . | . . . . . Total Robot Build Rating . | . . . . . Part Schematics Acquired 1 | . . . . 1 Parts Built . | . . . . . Authchips . | . . . . . Time . | . . . . . Total Part Build Rating . | . . . . . Parts Repaired . | . . . . . Time . | . . . . . Parts Recycled . | . . . . . Recycled Matter . | . . . . . Retrieved Matter . | . . . . . Retrieved Components . | . . . . . Parts Scanalyzed 1 | . . . . 1 Part Schematics Acquired 1 | . . . . 1 Parts Damaged 1 | . . . . 1 Bothacking | -11 -10 -9 -9 -8 ------------ Run | Yrd Mat Mat Min Mat Used RIF Installer . | . . . . . Robots Hacked . | . . . . . Non-combat . | . . . . . Combat . | . . . . . Robot Hacks Applied . | . . . . . Relay Couplers Released . | . . . . . Fabnet Peak Effective % . | . . . . . Robots Rewired . | . . . . . Allies Hacked . | . . . . . Hacks Repelled . | . . . . . Allies | -11 -10 -9 -9 -8 -------- Run | Yrd Mat Mat Min Mat Total Allies 2 | . . . 2 . Largest Group 2 | . . . 2 2 Highest-Rated Group 45 | . . . 45 45 Highest-Rated Ally 31 | . . . 31 31 Total Orders . | . . . . . Ally Attacks 23 | . . . . 23 Total Damage 249 | . . . . 249 Kills 4 | . . . . 4 Allies Corrupted . | . . . . . Allies Melted . | . . . . . Intel | -11 -10 -9 -9 -8 ------- Run | Yrd Mat Mat Min Mat Robot Analysis Total . | . . . . . Derelict Logs Recovered . | . . . . . Drone Launches . | . . . . . Drone Recoveries . | . . . . . Exploration | -11 -10 -9 -9 -8 ------------- Run | Yrd Mat Mat Min Mat Turns Passed 5201 | 57 954 1316 437 2437 Spaces Moved 3005 | 39 753 714 293 1206 Core 3 | 1 . 1 . 1 Treads 92 | . . . . 92 Legs 1579 | . . 700 293 586 Wheels 804 | 38 753 13 . . Hover 527 | . . . . 527 Flight . | . . . . . Fastest Speed 50 | 50 80 100 130 56 Average Speed 120 | 79 96 145 130 118 Slowest Speed 270 | 80 100 270 130 200 Overloaded Moves . | . . . . . Propulsion Burnouts . | . . . . . Robots Hopped . | . . . . . Cave-ins Triggered . | . . . . . Exploration Rate (%) 54 | 4 81 54 76 59 Regions Visited 4 Branch Regions 1 Pre-discovered Areas 1 | . . . 1 . Known Exits Taken . | . . . . . Unknown Exits Taken 4 | 1 1 1 1 . Scrap Searched 2 | . . . 2 . Spaces Dug 1 | . . . . 1 Terrain Destroyed 32 | . 2 29 . 1 Melee 1 | . . . . 1 Projectile . | . . . . . AOE 31 | . 2 29 . . Terrain Rammed . | . . . . . Walls Destroyed . | . . . . . Machines Disabled . | . . . . . Actions | -11 -10 -9 -9 -8 --------- Run | Yrd Mat Mat Min Mat Total 4194 | 55 887 883 335 2034 Wait 725 | 7 45 34 33 606 Move 3001 | 38 752 713 292 1206 Hop . | . . . . . Pick Up 39 | 1 8 17 1 12 Fast Attach 59 | 6 9 16 . 28 Attach 10 | . 1 1 1 7 Detach 24 | . 4 8 1 11 Swap 13 | . 4 2 . 7 Drop 67 | . 10 25 . 32 Fire 210 | 3 54 64 7 82 Melee 43 | . . . . 43 Ram . | . . . . . Kick 3 | . . 3 . . Crush . | . . . . . Escape Stasis . | . . . . . Rewire . | . . . . . Trap . | . . . . . Miscellaneous . | . . . . . Route ------- -11/Scrapyard -10/Materials (discovered 4 exits: *Mat x2 / [*Min x2]) -9/Materials (discovered 2 exits: [*Min x2]) -9/Mines -8/Materials (discovered 1 exit: [*Fac]) History --------- Turn | Location | Event 23 | -11/Scrapyard | Discovered new exit (range 12) 58 | -11/Scrapyard | Entered Materials 58 | -10/Materials | Discovered new exit (range 7) 119 | -10/Materials | Discovered new exit (range 13) 314 | -10/Materials | Build established: Mutant 479 | -10/Materials | Discovered new exit (range 14) 613 | -10/Materials | Hacking Suite fried by hacking feedback 635 | -10/Materials | Discovered new exit (range 4) 637 | -10/Materials | Core integrity fell below 50% 673 | -10/Materials | Lost 3 parts (1p1u1w) 1012 | -10/Materials | Entered another Materials area 1012 | -9/Materials | Evolved 2 slots: Utility x2 1725 | -9/Materials | Discovered new exit (range 13) 2212 | -9/Materials | First assault squad dispatched 2308 | -9/Materials | Discovered new exit (range 9) 2328 | -9/Materials | Entered Mines 2329 | -9/Mines | Learned location of Storage (-7) 2343 | -9/Mines | Found a damaged Exp. Sensor Array with a note attached 2347 | -9/Mines | Found Prototype Device 2504 | -9/Mines | Found a hidden stash of uninstalled traps 2747 | -9/Mines | Discovered new exit (range 12) 2765 | -9/Mines | Entered Materials 2765 | -8/Materials | Accompanied by 2 allies 2765 | -8/Materials | Evolved 2 slots: Utility x2 2770 | -8/Materials | Led the pair of lost Derelicts to an unsafe place 2827 | -8/Materials | Identified Exp. Sensor Array 3127 | -8/Materials | Lost 3 parts (1n1u1w) 3582 | -8/Materials | Core integrity fell below 50% 3828 | -8/Materials | Core integrity fell below 20% 4024 | -8/Materials | Discovered new exit (range 8) 5202 | -8/Materials | Destroyed by G-47 Trooper with Particle Gun Last Messages --------------- 05148_ Dropped Assault Cannon. 05151_ R-06 Scavenger collects Imp. Hover Unit. 05153_ W-25 Informer sends out distress signal. 05155_ Connecting with Garrison Access... >>Seal Access door sealed. 05168_ Dropped Imp. Weapon Shielding. 05169_ Acquired Imp. Weapon Shielding. 05170_ Dropped Lgt. Armor Plating. 05171_ Dropped Lrn. Tractor Beam. 05172_ ALERT: Suspicious intruders detected, dispatching Cutter reinforcements to area. 05175_ Acquired Imp. Melee Analysis Suite. 05180_ ALERT: Hostiles spotted, dispatching reinforcements to Terminal M004. 05185_ Y-45 Defender Lgt. Armor Plating severed. 05187_ Y-45 Defender destroyed. 05188_ Acquired 57 matter. 05196_ Critical hit (Burn: +37). 05201_ Hover Unit destroyed. Map ----- +----------------------------------------------------+ | ????????????????# """ #?#] """#???#% #???? | | ????????????????# """ #?# #???# * ! #???? | | ????????????????# #?#! #???# =% #???? | | ????????????????########?######+##### = #???? | | ???????????????????????????# ] #???? | | ???????????????????????????# ############# #???? | | ????????????????????????####+##??????????# #???? | | ????????????????????????# #??????????# #???? | | ????????????????????????# "" #??????????? #???? | | ????????????????????????# G" ##########?? #???? | | ????????????????????????# "" + / ? | | ????????????????????????# ##########?? # ??? | | ????????????????????????# #??????????? # ?? | | ????????????????????????# """ #??????????? #? ?? | | ????????????????????????# """ #??????????? #? ? | | ????????????????????????# """ #??????????? ???## | | ????????????????????????# #??????????? ????? | | ????????????????????????# #??????????????????? | | ????????????????????????# #??###?????????????? | | ???????????#######+#########+## #?????????????? | | ??????? #?????????????? | | ??????? +???????H?????? | | ????????????######+##### g##### #?????????????? | | ???????????????????????# #????#####?????????????? | | ???????????????????????#g #??????????????????????? | | ???????????????????????# @#####??????????????????? | | ???????????????????????# !! ]]#??????????????????? | | ???????????????????????#!![!]]#??????????????????? | | ???????????????????????# !!#??????????????????? | | ???????????????????????+ !!#??????????????????? | | ???????????????????????#### ! #??????????????????? | | ??????????????????????????# #??????????????????? | | ??????????????????????????#####??????????????????? | | ?????????????????????????????????????????????????? | | | | | | | | | | | | | | | | | | | | | | | | | | | | | | | | | +----------------------------------------------------+ Best States ------------- Heat Dissipation 45 Energy Generation 14 Energy Capacity 280 Matter Stores 300 Matter Capacity 300 Sight Range 20 Robot Scan Range 20 Terrain Scan Range 16 Terrain Scan Density 10 Armor Coverage 225 Weapon Shielding 66 Evasion (%) 55 Targeting Accuracy 24 Melee Accuracy 18 Recoil Reduction 1 Offensive Hacking 10 Item Schematics ----------------- Exp. Sensor Array | -8/Materials | Scanalyzed Robot Schematics ------------------ None Fabricated ------------ Nothing Alien Tech Used ----------------- None Achievements -------------- Safety First Challenges ------------ None Game ------ Seed BattleSignalBox Manual? 0 Play Time 00:47:31 Cumulative 41.2 hours Start 2024.04.11 @ 17:32:24 End 2024.04.11 @ 18:34:28 Sessions 1 Manual Loads 0 Difficulty Rogue Special Mode None Game No. 47 Rogue 41 Adventurer 6 Explorer 0 Win Type - Total 0 Types 0/0/0/0/0/0/0/0/0 Lore% 22 Gallery% 37 Achievement% 30 Wizard Run 0 Options --------- Layout 0 ASCII 0 Keyboard 1 Movement Numpad Keybinds 0 Fullscreen 0 Font 12/Smallcaps Map View 76x50 Zoom Use 0% Tactical HUD 1 Map Filters NONE Filters NONE Steam 1 RUN: fcd9a99b-94c7-472c-a3a9-f79411245483